Cogmind - Beta 13 @@@ ROGUE MODE // 2024.03.07 @ 01:42:44 Player: Ferns Result: Destroyed by S-27 Virus with Autogun Performance ------------- Evolutions (3) 1500 Regions Visited (6) 1200 Robots Destroyed (104) 520 Value Destroyed (3389) 3389 Prototype IDs (29) 580 Alien Tech Used (0) 0 Bonus (441) 441 TOTAL SCORE: 7630 Bonus ------- High Alert Combat Kills 154 Aligned with FarCom 300 Friendly Fire -13 Cogmind --------- Core Integrity 0/700 Matter 283/300 Energy 115/160 System Corruption 16% Temperature Cool (22) Movement Rolling (120) Ox2 Location -7/Factory Parts ------- > --- POWER (1) -------- Light Nuclear Core > --- PROPULSION (3) --- Wheel Armored Huge Wheel > --- UTILITY (6) ------ Improved Cooling System Coolant Injector Huge Storage Unit Visual Processing Unit Improved Signal Interpreter Improved Medium Armor Plating > --- WEAPON (3) ------- Field Laser Gatling Laser Plasma Cannon > --- INVENTORY (25) --- Light Deuterium Engine Light Nuclear Core Armored Huge Wheel Improved Heat Sink Coolant Injector Humpback Superbattery (1500) Compact Matter Pod (150) Advanced ECM Suite Improved Weapon Shielding Improved Light Armor Plating Improved Light Armor Plating Hacking Suite Relay Coupler [Sentry] (17) Relay Coupler [Specialist] (14) Long-range Tractor Beam Heavy Laser AWS/Thermal Ion Cannon Gauss Rifle Flak Gun Peak State ------------ > --- POWER ------------ Improved Deuterium Engine > --- PROPULSION ------- Armored Huge Wheel > --- UTILITY ---------- Improved Cooling System Huge Storage Unit Visual Processing Unit Improved Sensor Array Improved Light Armor Plating Medium Reactive Plating > --- WEAPON ----------- Precision Beam Rifle Firepult > --- INVENTORY -------- Heavy Ion Engine Nuclear Core Armored Huge Wheel Armored Huge Wheel Improved Cooling System Improved Cooling System Humpback Superbattery Compact Matter Pod Improved Signal Interpreter Advanced ECM Suite Hacking Suite Long-range Tractor Beam Field Laser Gatling Laser Gatling Laser AWS/Thermal Ion Cannon Plasma Cannon [Rating: 62] Favorites ----------- Power Light Nuclear Core Engine Light Ion Engine Power Core Light Nuclear Core Propulsion Wheel Wheel Wheel Utility Visual Processing Unit Device Improved Cooling System Storage Huge Storage Unit Processor Visual Processing Unit Protection Heavy Armor Plating Weapon Medium Laser Energy Gun Medium Laser Energy Cannon Improved EM Pulse Cannon Ballistic Gun Assault Rifle Ballistic Cannon Flak Cannon Build | -11 -10 -10 -10 -9 -8 -7 ------- Run | Yrd Mat Min Exi Min Mat Fac Slots Evolved 6 | . . . . . 4 2 Power . | . . . . . . . Propulsion 1 | . . . . . 1 . Utility 4 | . . . . . 3 1 Weapon 1 | . . . . . . 1 Parts Attached 87 | 8 3 6 1 1 26 42 Power 12 | 1 . 2 . 1 1 7 Engine 6 | 1 . 2 . . . 3 Core 6 | . . . . 1 1 4 Reactor . | . . . . . . . Propulsion 19 | 2 2 2 . . 6 7 Treads . | . . . . . . . Leg . | . . . . . . . Wheel 19 | 2 2 2 . . 6 7 Hover . | . . . . . . . Flight . | . . . . . . . Utility 28 | 2 1 1 1 . 8 15 Device 14 | 1 . 1 . . 4 8 Storage 4 | 1 1 . 1 . 1 . Processor 3 | . . . . . 1 2 Hackware . | . . . . . . . Protection 7 | . . . . . 2 5 Artifact . | . . . . . . . Weapon 28 | 3 . 1 . . 11 13 Energy Gun 14 | 2 . 1 . . 4 7 Energy Cannon 8 | . . . . . 2 6 Ballistic Gun 3 | 1 . . . . 2 . Ballistic Cannon 3 | . . . . . 3 . Launcher . | . . . . . . . Special Weapon . | . . . . . . . Impact Weapon . | . . . . . . . Slashing Weapon . | . . . . . . . Piercing Weapon . | . . . . . . . Special Melee Weapon . | . . . . . . . Unidentified Prototypes 4 | . . . . . 2 2 Parts Lost 24 | . 1 4 . . 4 15 Power 5 | . . 2 . . . 3 Propulsion 8 | . 1 1 . . 3 3 Utility 7 | . . . . . 1 6 Weapon 4 | . . 1 . . . 3 Highest Loss Streak 9 | . 1 2 . . 1 9 To Critical Strikes . | . . . . . . . Average Slot Usage (%) 92 | . 99 99 100 100 95 85 Engine 5 | . 14 13 14 10 . 2 Core 3 | . . . . 3 9 4 Wheel 20 | . 27 27 28 28 25 13 Device 16 | . 14 14 14 14 23 14 Storage 9 | . 14 14 14 14 9 7 Processor 6 | . . . . . 8 9 Protection 4 | . . . . . 2 8 Energy Gun 15 | . 14 22 28 28 7 13 Energy Cannon 3 | . . . . . . 7 Ballistic Gun 1 | . 14 5 . . 2 . Ballistic Cannon 1 | . . . . . 6 . Naked Turns . | . . . . . . . Heaviest Build 129 | 15 50 50 48 50 110 129 Greatest Support 44 | 26 26 20 20 20 42 44 Greatest Overweight (x) 4 | . 2 2 2 2 3 4 Average Overweight (x) 2 | . . 2 2 2 2 2 Largest Inventory Capacity 25 | 8 20 20 20 20 25 25 Average Capacity 22 | 7 9 20 20 20 24 25 Most Carried 25 | 4 8 12 19 20 25 25 Average Carried 18 | 1 6 9 14 19 21 23 Final Capacity 25 | 8 20 20 20 20 25 25 Final Carried 25 | 3 8 11 19 20 25 24 Class Distribution -------------------- 33% | Scavenger-Skirmisher 29% | Mutant 14% | Scavenger-Tank 11% | Tank 10% | Skirmisher Dominant Class ---------------- Mutant | -10/Materials Mutant | -10/Mines Mutant | -10/Exiles Skirmisher | -9/Mines Scavenger-Skirmisher | -8/Materials Scavenger-Skirmisher | -7/Factory Resources | -11 -10 -10 -10 -9 -8 -7 ----------- Run | Yrd Mat Min Exi Min Mat Fac Matter Collected 1813 | 231 70 395 20 10 551 536 Remotely . | . . . . . . . Salvage Created 3991 | 40 152 425 . 72 858 2444 Parts 177 | 4 4 25 . 2 44 98 Haulers Intercepted 1 | . . . . . 1 . Recyclers Shooed 2 | . . . . . 1 1 Parts Field Recycled . | . . . . . . . Retrieved Matter . | . . . . . . . Parts Self-Destructed . | . . . . . . . Prevented . | . . . . . . . Kills | -11 -10 -10 -10 -9 -8 -7 ------- Run | Yrd Mat Min Exi Min Mat Fac Combat Hostiles Destroyed 73 | . 3 11 . 2 19 38 Guns 41 | . 3 10 . 1 8 19 Cannons 17 | . . . . . 6 11 AOE 9 | . . 1 . 1 4 3 Classes Destroyed 14 | 1 2 3 . . 3 5 Worker 5 | . . 1 . . 1 3 Builder 2 | . . . . . 1 1 Tunneler 6 | 2 . 1 . . 2 1 Hauler 1 | . . . . . 1 . Recycler 8 | . . 1 . . 2 5 Mechanic 1 | . . . . . . 1 Watcher 8 | . 1 . . . 2 5 Swarmer 19 | . . 6 . . 7 6 Grunt 31 | . 3 5 . 2 7 14 Duelist 1 | . . . . . . 1 Protector 1 | . . . . . . 1 Sentry 10 | . . . . . 5 5 Hunter 2 | . . . . . . 2 Programmer 9 | . . . . . . 9 Best Kill Streak 13 | 2 3 5 . 2 12 13 Combat Bots Only 10 | . 2 3 . 2 7 10 Max Kills in Single Turn 4 | 1 1 1 . 1 4 3 Gunslinging . | . . . . . . . Exploded 2 | . . 1 . 1 2 1 Melee . | . . . . . . . Uniques/NPCs Destroyed . | . . . . . . . Combat | -11 -10 -10 -10 -9 -8 -7 -------- Run | Yrd Mat Min Exi Min Mat Fac Hostile Shots Fired 550 | . 31 40 . 4 54 421 Missed 156 | . 9 9 . . 14 124 Damage Taken 5003 | . 239 301 . 51 507 3905 Core 850 | . 31 21 . . 83 715 Absorbed by Shields . | . . . . . . . Ignored by Resistances 19 | . . . . . . 19 Regen/Repaired (Parts) 66 | . . . . . . 66 Core Remaining (%) 87 | 100 . . . 79 84 . Volleys Fired 210 | 3 24 30 . 4 49 100 Largest 3 | 1 2 2 . 2 2 3 Hottest 311 | 50 70 90 . 90 250 311 Shots Fired 479 | 3 46 59 . 8 103 260 Gun 362 | 3 46 59 . 8 55 191 Cannon 117 | . . . . . 48 69 Launcher . | . . . . . . . Special . | . . . . . . . Kinetic 100 | . 24 11 . . 65 . Thermal 336 | 3 22 30 . 4 34 243 Explosive . | . . . . . . . Electromagnetic 43 | . . 18 . 4 4 17 Robot Hit Streak 20 | 1 6 6 . 5 7 20 Robot Miss Streak 12 | 2 6 4 . 2 12 4 Penetration Max . | . . . . . . . Secondary Targets 5 | . . 5 . . . . Max Gunslinging Chain 1 | . . 1 . . . . Autonomous 52 | . . . . . 12 40 Shots Hit Robots 315 | 1 27 34 . 5 68 180 Core Hits 221 | 2 8 20 . 4 70 117 Critical Kills 1 | . . . . . . 1 Critical Parts Destroyed . | . . . . . . . Critical Strikes 9 | . . 2 . . . 7 Burn 7 | . . 2 . . . 5 Meltdown 1 | . . . . . . 1 Corrupt 1 | . . . . . . 1 Melee Attacks . | . . . . . . . Impact . | . . . . . . . Slashing . | . . . . . . . Piercing . | . . . . . . . Sneak Attacks . | . . . . . . . Combat Hostiles . | . . . . . . . Follow-up Attacks . | . . . . . . . Damage Inflicted 8244 | 24 345 499 . 143 1779 5454 Guns 4739 | 24 345 465 . 66 554 3285 Cannons 1891 | . . . . . 663 1228 Explosions 1606 | . . 34 . 77 562 933 Melee . | . . . . . . . Ramming 8 | . . . . . . 8 Kinetic 923 | . 156 69 . . 698 . Thermal 6371 | 24 189 274 . 103 817 4964 Explosive 227 | . . . . . 227 . Electromagnetic 715 | . . 156 . 40 37 482 Impact . | . . . . . . . Slashing . | . . . . . . . Piercing . | . . . . . . . Highest Corruption 16 | . . . . . . 16 Average Corruption 15 | . . . . . . 15 Corruption Purged . | . . . . . . . Corruption Blocked . | . . . . . . . Effects 50 | . . . . . . 50 Message Errors 11 | . . . . . . 11 Matter Fused 8 | . . . . . . 8 Heat Flow Errors 6 | . . . . . . 6 Energy Discharges 9 | . . . . . . 9 Parts Fused 1 | . . . . . . 1 Data Loss (minor) 4 | . . . . . . 4 Data Loss (major) 3 | . . . . . . 3 Misfires 2 | . . . . . . 2 Misdirections 1 | . . . . . . 1 Weapon Failures 5 | . . . . . . 5 Overload Shots . | . . . . . . . Overflow Damage 23 | . . . . . 3 20 Projectiles 19 | . . . . . . 19 Explosions 4 | . . . . . 3 1 Melee . | . . . . . . . Knockbacks 12 | . . . . . 12 . Impact . | . . . . . . . Kinetic 12 | . . . . . 12 . Secondary . | . . . . . . . Self-Inflicted Damage 191 | . . 10 . 5 25 151 Shots 15 | . . 1 . 1 1 12 Rammed 1 | . . . . . . 1 Targets Rammed 1 | . . . . . . 1 Kicked . | . . . . . . . Crushed . | . . . . . . . Highest Temperature 480 | 20 180 351 . 150 368 480 Average Temperature 102 | 10 71 98 . 79 98 119 Received Heat Transfer 1065 | . 126 69 . 18 162 690 Effects 4 | . . 1 . . 1 2 Shutdowns 2 | . . . . . 1 1 Damage (minor) 2 | . . 1 . . . 1 Siege Activations . | . . . . . . . Robots Corrupted 1 | . . . . . . 1 Combat Hostiles 1 | . . . . . . 1 Parts Fried 1 | . . . . 1 . . Impact Corruptions . | . . . . . . . Robots Melted 6 | . . . . . 1 5 Combat Hostiles 5 | . . . . . 1 4 Parts Melted 59 | . 1 3 . . 13 42 Heat Transferred 15389 | 74 555 901 . 174 3066 10619 Parts Sabotaged . | . . . . . . . Parts Stolen . | . . . . . . . Parts Stripped . | . . . . . . . Power Chain Reactions 2 | . . 1 . 1 . . Alert | -11 -10 -10 -10 -9 -8 -7 ------- Run | Yrd Mat Min Exi Min Mat Fac Peak Influence 819 | 10 126 228 . 67 496 819 Initial 107 | . 6 48 . . 26 107 Average 232 | 2 53 70 . 18 211 343 Maximum Alert Level 3 | . . 1 . . 2 3 Low Security (%) 56 | 100 100 96 . 100 44 37 Level 1 23 | . . 3 . . 40 28 Level 2 15 | . . . . . 14 24 Level 3 4 | . . . . . . 8 Level 4 . | . . . . . . . Level 5 . | . . . . . . . High Security . | . . . . . . . Max Security . | . . . . . . . Squads Dispatched 16 | . 1 . . . 4 11 Investigation 3 | . . . . . . 3 Extermination 2 | . . . . . . 2 Reinforcement 5 | . 1 . . . 1 3 Assault 1 | . . . . . . 1 Garrison 5 | . . . . . 3 2 Intercept . | . . . . . . . Searches Triggered . | . . . . . . . Construction Impeded . | . . . . . . . Haulers Reinforced 1 | . . . . . . 1 Active Scanning Responses . | . . . . . . . Cargo Convoy Interrupts 1 | . . . . . . 1 Stealth | -11 -10 -10 -10 -9 -8 -7 --------- Run | Yrd Mat Min Exi Min Mat Fac Distress Signals 7 | . 1 1 . . 3 2 Communications Jammed . | . . . . . . . Distress Signals . | . . . . . . . Times Spotted 114 | . 9 13 . 8 25 59 Peak Tracking Total 12 | . 3 3 . 12 6 12 Tactical Retreats 4 | . . 1 . . 2 1 Traps | -11 -10 -10 -10 -9 -8 -7 ------- Run | Yrd Mat Min Exi Min Mat Fac Traps Triggered 3 | . . . . . . 3 Indirectly . | . . . . . . . Trap Hack Attempts . | . . . . . . . Triggered . | . . . . . . . Disarmed . | . . . . . . . Reprogrammed . | . . . . . . . Reused . | . . . . . . . Traps Extracted . | . . . . . . . Installed . | . . . . . . . Triggered . | . . . . . . . Machines | -11 -10 -10 -10 -9 -8 -7 ---------- Run | Yrd Mat Min Exi Min Mat Fac Machines Disabled 9 | . . . . 1 4 4 Max in Single Turn 2 | . . . . 1 2 1 Garrison Access 2 | . . . . . . 2 Machines Repaired . | . . . . . . . Machines Dismantled . | . . . . . . . Machines Sabotaged . | . . . . . . . Overloaded Fab Kills . | . . . . . . . Hacking | -11 -10 -10 -10 -9 -8 -7 --------- Run | Yrd Mat Min Exi Min Mat Fac Machines Accessed 16 | . 3 . 1 . 5 7 Terminals 10 | . 3 . . . 4 3 Fabricators . | . . . . . . . Repair Stations 1 | . . . . . . 1 Recycling Units 2 | . . . . . . 2 Scanalyzers 1 | . . . . . 1 . Garrison Access 1 | . . . . . . 1 Total Hacks 45 | . 9 . 1 . 9 26 Successful 20 | . 3 . 1 . 8 8 Failed 25 | . 6 . . . 1 18 Catastrophic 1 | . . . . . . 1 Database Lockouts . | . . . . . . . Manual 11 | . 4 . 1 . 3 3 Terminals 28 | . 9 . . . 7 12 Fabricators . | . . . . . . . Repair Stations 7 | . . . . . . 7 Recycling Units 6 | . . . . . . 6 Scanalyzers 2 | . . . . . 2 . Garrison Access 1 | . . . . . . 1 Terminal Hacks 8 | . 1 . 1 . 3 3 Record 1 | . . . . . . 1 Prototype ID Bank 1 | . . . . . 1 . Alert Level 1 | . . . . . . 1 Unreport Threat 1 | . . . . . 1 . Locate Traps 2 | . 1 . . . 1 . Dispatch Records 1 | . . . . . . 1 Derelict Proto ID Bank 1 | . . . 1 . . . Fabricator Hacks . | . . . . . . . Repair Station Hacks 3 | . . . . . . 3 Scan Component 2 | . . . . . . 2 Repair 1 | . . . . . . 1 Recycling Unit Hacks 1 | . . . . . . 1 Retrieve Components 1 | . . . . . . 1 Scanalyzer 2 | . . . . . 2 . Insert Component 1 | . . . . . 1 . Analyze 1 | . . . . . 1 . Garrison Access Hacks 1 | . . . . . . 1 Seal Access 1 | . . . . . . 1 Unauthorized Hacks 5 | . 2 . . . 3 . Terminals 5 | . 2 . . . 3 . Botnet 5 | . 2 . . . 3 . Fabricators . | . . . . . . . Repair Stations . | . . . . . . . Recycling Units . | . . . . . . . Scanalyzers . | . . . . . . . Garrison Access . | . . . . . . . Data Cores Recovered . | . . . . . . . Used . | . . . . . . . Hacking Detections 11 | . 2 . . . 4 5 Full Trace Events 3 | . . . . . . 3 Feedback Events . | . . . . . . . Feedback Blocked . | . . . . . . . Robot Schematics Acquired . | . . . . . . . Robots Built . | . . . . . . . Authchips . | . . . . . . . Time . | . . . . . . . Total Robot Build Rating . | . . . . . . . Part Schematics Acquired 1 | . . . . . 1 . Parts Built . | . . . . . . . Authchips . | . . . . . . . Time . | . . . . . . . Total Part Build Rating . | . . . . . . . Parts Repaired 1 | . . . . . . 1 Time 44 | . . . . . . 44 Parts Recycled . | . . . . . . . Recycled Matter . | . . . . . . . Retrieved Matter . | . . . . . . . Retrieved Components 1 | . . . . . . 1 Parts Scanalyzed 1 | . . . . . 1 . Part Schematics Acquired 1 | . . . . . 1 . Parts Damaged . | . . . . . . . Bothacking | -11 -10 -10 -10 -9 -8 -7 ------------ Run | Yrd Mat Min Exi Min Mat Fac Used RIF Installer . | . . . . . . . Robots Hacked . | . . . . . . . Non-combat . | . . . . . . . Combat . | . . . . . . . Robot Hacks Applied . | . . . . . . . Relay Couplers Released 2 | . . . . . . 2 Machine Destruction 2 | . . . . . . 2 Fabnet Peak Effective % . | . . . . . . . Robots Rewired . | . . . . . . . Allies Hacked . | . . . . . . . Hacks Repelled . | . . . . . . . Allies | -11 -10 -10 -10 -9 -8 -7 -------- Run | Yrd Mat Min Exi Min Mat Fac Total Allies 1 | . . 1 . . . . Largest Group 1 | . . 1 1 . . . Highest-Rated Group 31 | . . 31 31 . . . Highest-Rated Ally 31 | . . 31 31 . . . Total Orders . | . . . . . . . Ally Attacks 5 | . . 5 . . . . Total Damage 85 | . . 85 . . . . Kills . | . . . . . . . Allies Corrupted . | . . . . . . . Allies Melted . | . . . . . . . Intel | -11 -10 -10 -10 -9 -8 -7 ------- Run | Yrd Mat Min Exi Min Mat Fac Robot Analysis Total . | . . . . . . . Derelict Logs Recovered 1 | . . 1 . . . . Drone Launches . | . . . . . . . Drone Recoveries . | . . . . . . . Exploration | -11 -10 -10 -10 -9 -8 -7 ------------- Run | Yrd Mat Min Exi Min Mat Fac Turns Passed 5540 | 88 201 903 439 275 1063 2571 Spaces Moved 3507 | 73 139 703 391 93 608 1500 Core 5 | 5 . . . . . . Treads . | . . . . . . . Legs . | . . . . . . . Wheels 3502 | 68 139 703 391 93 608 1500 Hover . | . . . . . . . Flight . | . . . . . . . Fastest Speed 50 | 50 80 110 110 110 95 120 Average Speed 120 | 87 85 110 110 110 118 135 Slowest Speed 160 | 90 110 110 110 110 145 160 Overloaded Moves . | . . . . . . . Propulsion Burnouts . | . . . . . . . Robots Hopped . | . . . . . . . Cave-ins Triggered . | . . . . . . . Exploration Rate (%) 44 | 4 33 98 75 24 49 25 Regions Visited 6 Branch Regions 3 Pre-discovered Areas . | . . . . . . . Known Exits Taken . | . . . . . . . Unknown Exits Taken 6 | 1 1 1 1 1 1 . Scrap Searched 2 | . . 1 . 1 . . Spaces Dug . | . . . . . . . Terrain Destroyed 46 | . . 6 . 2 36 2 Melee . | . . . . . . . Projectile 7 | . . . . . 5 2 AOE 39 | . . 6 . 2 31 . Terrain Rammed . | . . . . . . . Walls Destroyed . | . . . . . . . Machines Disabled . | . . . . . . . Actions | -11 -10 -10 -10 -9 -8 -7 --------- Run | Yrd Mat Min Exi Min Mat Fac Total 4435 | 93 175 775 400 257 876 1859 Wait 435 | . . 18 . 159 130 128 Move 3501 | 72 138 702 390 92 607 1500 Hop . | . . . . . . . Pick Up 125 | 10 8 13 7 1 34 52 Fast Attach . | . . . . . . . Attach 55 | 7 1 4 . . 17 26 Detach 11 | . . . . . 8 3 Swap 32 | 1 2 2 1 1 9 16 Drop 65 | . 2 6 2 . 22 33 Fire 210 | 3 24 30 . 4 49 100 Melee . | . . . . . . . Ram 1 | . . . . . . 1 Kick . | . . . . . . . Crush . | . . . . . . . Escape Stasis . | . . . . . . . Rewire . | . . . . . . . Trap . | . . . . . . . Miscellaneous . | . . . . . . . Route ------- -11/Scrapyard -10/Materials -10/Mines (discovered 3 exits: [*Mat x2] / *Exi) -10/Exiles -9/Mines (discovered 2 exits: *Mat x2) -8/Materials -7/Factory History --------- Turn | Location | Event 24 | -11/Scrapyard | Discovered new exit (range 16) 89 | -11/Scrapyard | Entered Materials 186 | -10/Materials | Discovered new exit (range 10) 290 | -10/Materials | Entered Mines 311 | -10/Mines | Build established: Mutant 369 | -10/Mines | Discovered new exit (range 6) 444 | -10/Mines | Learned 4 Materials zone layouts 518 | -10/Mines | A weapon hastily lodged in a ceiling crevice suddenly fell to the ground 604 | -10/Mines | Discovered new exit (range 6) 710 | -10/Mines | Deemed a non-threat by the Exiles lab entrance 711 | -10/Mines | Discovered new exit (range 5) 859 | -10/Mines | Escorted by a lone wolf Derelict 1043 | -10/Mines | Received a Rocket Launcher from a helpful Derelict 1063 | -10/Mines | Found a damaged Exp. Sensor Array with a note attached 1066 | -10/Mines | Found Prototype Device 1193 | -10/Mines | Entered Exiles 1193 | -10/Exiles | Accompanied by 1 ally 1221 | -10/Exiles | Met 8R-AWN 1239 | -10/Exiles | Met EX-HEX 1275 | -10/Exiles | Met EX-BIN 1327 | -10/Exiles | Aligned with FarCom system 1328 | -10/Exiles | Given EX-Vault access code 1353 | -10/Exiles | Opened EX-Vault 1363 | -10/Exiles | Found Firepult 1366 | -10/Exiles | Found AWS/Thermal 1369 | -10/Exiles | Found Superbattery 1393 | -10/Exiles | Warned to stay clear of 0b10 Research branches 1424 | -10/Exiles | Met EX-DEC 1490 | -10/Exiles | Visited The Gauntlet 1619 | -10/Exiles | Discovered new exit (range 14) 1632 | -10/Exiles | Stole three prototypes: Superbattery, AWS/Thermal, Firepult 1632 | -10/Exiles | Entered Mines 1637 | -9/Mines | Discovered new exit (range 13) 1878 | -9/Mines | Discovered new exit (range 9) 1880 | -9/Mines | Assembled infested the area 1907 | -9/Mines | Entered Materials 1907 | -8/Materials | Evolved 4 slots: Propulsion x1, Utility x3 1911 | -8/Materials | Identified Exp. Sensor Array 2217 | -8/Materials | Build established: Scavenger-Skirmisher 2416 | -8/Materials | Garrison activated, responded to threat 2580 | -8/Materials | Destroyed 7 combat bots 2910 | -8/Materials | Discovered new exit (range 12) 2970 | -8/Materials | Entered Factory 2970 | -7/Factory | Evolved 2 slots: Utility x1, Weapon x1 2972 | -7/Factory | FarCom data flow suspended 4078 | -7/Factory | Lost 3 parts (1n1u1w) 4342 | -7/Factory | Build established: Tank 4346 | -7/Factory | Repaired Arm. Huge Wheel 4565 | -7/Factory | Cargo convoy interrupted 4582 | -7/Factory | Garrison activated, responded to threat 4597 | -7/Factory | Core integrity fell below 50% 4599 | -7/Factory | System corruption reached 10% 4630 | -7/Factory | Core integrity fell below 20% 4652 | -7/Factory | Lost 9 parts (2p1n4u2w) 4660 | -7/Factory | Destroyed 10 combat bots 5194 | -7/Factory | Build established: Scavenger-Tank 5541 | -7/Factory | Destroyed by S-27 Virus with Autogun Last Messages --------------- 05453_ System corrupted: Matter fused (-7). 05453_ Acquired 7 matter. 05455_ K-01 Serf cleans the Construction Platform. 05471_ System corrupted: Heat flow error (+291). 05488_ J:RCF68WTFYCYCCU< A>Scan(Arm. Huge Wheel) Scanning Arm. Huge Wheel... Ready to Repair: Arm. Huge Wheel Rating: 4 Time: 44 05500_ ALERT: Suspicious activity at Repair Station F004. Dispatching Investigation squad. 05500_ Dropped Arm. Huge Wheel. 05502_ Acquired Arm. Huge Wheel. 05505_ System corrupted: Energy discharge (-41). 05522_ System corrupted: Matter fused (-7). 05540_ Manufacturing Mainframe disabled. Map ----- +----------------------------------------------------+ | ????????????? ??????? ?????????# ] %## % | | ????????????? ??????? ?????????# #####+# | | ?????? ????" ??????? ?????????# """ % % | | ??????? """ ?????# #????????# "T | | ?????? """ ?????# #????######## """ % | | ??????? / """ ?????# #????# ! # | | ??????? ????# #????# %!%+% | | ?????? ????# #????# %"""### | | ????? """ ????# #????# T"#?# ##########+# | | ?????? "F" ##### ##???# ! """#?# #???????# | | ?"" " #???# #?# #???????#!" | | ? """ ########+##### #########%%" | | ?"" """ % /"" | | ?"" ###########+##/######### | | ?"" # # # | | ?"" !!!######### # "" # ! # | | ??? ????????????# #""" """" # !! # | | ?????????????????# #"F %"""" # # | | ?????????????????# #""" """" # #### | | ?????????????????# # "" %%"""" # #??? | | ?????????????????# # # #??? | | ?????????????????# # """"%"""" # "T" #??? | | ?????????????????# # """" """" ###########??? | | ?????????????????# # """" """" #????????????? | | ?????????????????# # """ """" #????????????? | | ?????????????????# s @ a #????????????? | | ?????????????????# #########+################# | | ?????????????????# #???????# #???# | | ?????????????????# #???????# #???# """ | | ?????????????????# #???????# #???# "R """ | | ?????????????????# ######### ##### """ """ | | ?????????????????# # """ | | ?????????????????# # | | ?????????????????# + """ """ | | ?????????????????# # """ """ | | ?????????????????# # """ """ | | ?????????????????#########+####### # | | ????????????????????# % # # | | ????????????????????# % """"""" + + | | ????????????????????# %""""""" ###+############# | | ????????????????????# """"""" # #??????? | | ????????????????????# """"""" # #??????? | | ????????????????????# # #??????? | | ????????????????????# """"""" # #??????? | | ????????????????????# ! """"""" + #??????? | | ????????????????????# %""""""" # #??????? | | ????????????????????# %% """""" # #??????? | | ????????????????????# # #??????? | | ????????????????????#! / # ! #??????? | | ????????????????????####+##################??????? | +----------------------------------------------------+ Best States ------------- Heat Dissipation 88 Coolant Potential 65 Energy Generation 16 Energy Capacity 290 Matter Stores 300 Matter Capacity 300 Sight Range 18 Robot Scan Range 20 Terrain Scan Range 16 Terrain Scan Density 10 ECM Strength 2 Armor Coverage 600 Resistance: KI 30 Evasion (%) 44 Item Schematics ----------------- Hacking Suite | -8/Materials | Scanalyzed Robot Schematics ------------------ None Fabricated ------------ Nothing Alien Tech Used ----------------- None Achievements -------------- Everything Is Under Control I Survived The Infestation More Dakka Please Quantum Hacking Challenges ------------ None Game ------ Seed GuidedImprovedAutobeam Manual? 0 Play Time 00:58:10 Cumulative 14.1 hours Start 2024.03.07 @ 00:46:04 End 2024.03.07 @ 01:42:44 Sessions 1 Manual Loads 0 Difficulty Rogue Special Mode None Game No. 7 Rogue 1 Adventurer 6 Explorer 0 Win Type - Total 0 Types 0/0/0/0/0/0/0/0/0 Lore% 9 Gallery% 24 Achievement% 19 Wizard Run 0 Options --------- Layout 1 ASCII 0 Keyboard 0 Movement Arrows Keybinds 0 Fullscreen 2 Font 18/SmallcapsGlow Map View 51x43 Zoom Use 0% Tactical HUD 1 Map Filters NONE Filters NONE Steam 0 RUN: 2d4d645e-83e6-4d93-ae44-3fa9b3c893b1